bitfinex/quotes_BTCUSD_20241128
["timestamp","ask_amount","ask_price","bid_price","bid_amount"]
[1732829586715,0.31724578,95119.0,95118.0,0.01350025]
[1732829586940,0.13221478,95119.0,95118.0,0.02344025]
[1732829587188,0.13221478,95119.0,95118.0,0.03129312]
[1732829587628,0.13221478,95119.0,95118.0,0.12648512]
[1732829587838,0.13221478,95119.0,95118.0,0.03129312]
[1732829588272,0.13221478,95119.0,95118.0,0.13642512]
[1732829588754,0.13221478,95119.0,95118.0,0.03129312]
[1732829589908,0.13221478,95119.0,95118.0,0.13642512]
[1732829590125,0.13221478,95119.0,95118.0,0.03129312]
[1732829591716,0.13221478,95119.0,95118.0,0.13642512]
[1732829591961,0.13056826,95119.0,95118.0,0.13642512]
[1732829592652,0.13056826,95119.0,95118.0,0.03129312]
[1732829593087,0.13056826,95119.0,95118.0,0.03129343]
[1732829593546,0.12510166,95119.0,95118.0,0.03129343]
[1732829595592,0.20240166,95119.0,95118.0,0.03129343]
[1732829600770,0.38311886,95119.0,95118.0,0.02135343]
[1732829601028,0.51573266,95119.0,95118.0,0.00692391]
[1732829601743,0.51573266,95119.0,95118.0,0.00392391]
[1732829601955,0.51573266,95119.0,95118.0,0.00092391]
[1732829602202,0.51973266,95119.0,95118.0,0.00092391]
[1732829603995,0.53384329,95119.0,95118.0,0.00092391]
[1732829604212,0.53484329,95119.0,95118.0,0.00092391]
[1732829604435,0.52484329,95119.0,95118.0,0.00092391]
[1732829606055,0.51073266,95119.0,95118.0,0.00092391]
[1732829608077,0.62356412,95119.0,95118.0,0.00092391]
[1732829608309,0.52073266,95119.0,95118.0,0.00092391]
[1732829608990,0.51573266,95119.0,95118.0,0.00092391]
[1732829609453,0.52373266,95119.0,95118.0,0.00192391]
[1732829609674,0.51573266,95119.0,95118.0,0.00092391]
[1732829609940,0.51573266,95119.0,95118.0,0.00192391]
[1732829610152,0.52373266,95119.0,95118.0,0.00192391]
[1732829610402,0.52673266,95119.0,95118.0,0.00192391]
[1732829610844,0.52373266,95119.0,95118.0,0.00192391]
[1732829611305,0.52673266,95119.0,95118.0,0.00192391]
[1732829612249,0.288151,95101.0,95100.0,0.0008621]
[1732829612472,0.47219621,95101.0,95100.0,0.0008621]
[1732829613658,0.51749621,95101.0,95100.0,0.0008621]
[1732829614095,0.52296779,95101.0,95100.0,0.0028621]
[1732829614538,0.52296779,95101.0,95100.0,0.0008621]
[1732829614761,0.52496779,95101.0,95100.0,0.0008621]
[1732829615034,0.5393981,95101.0,95100.0,0.0008621]
[1732829615220,0.5373981,95101.0,95100.0,0.0008621]
[1732829615652,0.5403981,95101.0,95100.0,0.0008621]
[1732829615858,0.5483981,95101.0,95100.0,0.0008621]
[1732829617024,0.5453981,95101.0,95100.0,0.0008621]
[1732829617456,0.5473981,95101.0,95100.0,0.0008621]
[1732829628272,0.5473981,95101.0,95100.0,0.00092374]
[1732829635531,0.65022956,95101.0,95100.0,0.00092374]
[1732829636937,0.5473981,95101.0,95100.0,0.00092374]
[1732829639156,0.56862848,95101.0,95100.0,0.00092374]
[1732829639842,0.56062848,95101.0,95100.0,0.00092374]
[1732829640082,0.56962848,95101.0,95100.0,0.00092374]
[1732829640538,0.60203984,95101.0,95100.0,0.00092374]
[1732829640813,0.7028713,95101.0,95100.0,0.00092374]
[1732829641041,0.6938713,95101.0,95100.0,0.00092374]
[1732829641268,0.7068713,95101.0,95100.0,0.00092374]
[1732829642021,0.7028713,95101.0,95100.0,7.4e-07]
[1732829642707,0.7068713,95101.0,95100.0,7.4e-07]
[1732829642941,0.6978713,95101.0,95100.0,7.4e-07]
[1732829643172,0.7068713,95101.0,95100.0,7.4e-07]
[1732829643392,0.60403984,95101.0,95100.0,7.4e-07]
[1732829644772,0.265171,95083.0,95082.0,0.0017232]
[1732829645002,0.49261621,95083.0,95082.0,0.0017232]
[1732829645235,0.62785903,95083.0,95082.0,0.0017232]
[1732829645698,0.63333248,95083.0,95082.0,0.0017232]
[1732829646172,0.387981,95074.0,95055.0,0.01053066]
[1732829646408,0.49082621,95074.0,95052.0,0.0017236]
[1732829646673,0.51382621,95074.0,95052.0,0.0017236]
[1732829646928,0.60727973,95074.0,95052.0,0.0017236]
[1732829647619,0.61127973,95074.0,95052.0,0.0017236]
[1732829647834,0.416404,95053.0,95052.0,0.0017236]
[1732829648062,0.51924921,95053.0,95052.0,0.0017236]
[1732829649898,0.62208067,95053.0,95052.0,0.0017236]
[1732829651013,0.62208067,95053.0,95052.0,0.0027236]
[1732829651416,0.62208067,95053.0,95052.0,0.0017236]
[1732829651857,0.62208067,95053.0,95052.0,0.0027236]
[1732829652737,0.64292742,95053.0,95052.0,0.0027236]
[1732829653244,0.64592742,95053.0,95052.0,0.0017236]
[1732829653464,0.64292742,95053.0,95052.0,0.0017236]
[1732829653879,0.64892742,95053.0,95052.0,0.0017236]
[1732829655791,0.65092742,95053.0,95052.0,0.0017236]
[1732829656001,0.63008067,95053.0,95052.0,0.0017236]
[1732829658331,0.63008067,95053.0,95052.0,0.00234061]
[1732829664008,0.52642432,95053.0,95052.0,0.00234061]
[1732829666034,0.53189607,95053.0,95052.0,0.00234061]
[1732829668090,0.52989607,95053.0,95052.0,0.00234061]
[1732829668306,0.53189607,95053.0,95052.0,0.00234061]
[1732829669008,0.52989607,95053.0,95052.0,0.00234061]
[1732829669235,0.63272753,95053.0,95052.0,0.00234061]
[1732829669661,0.62672753,95053.0,95052.0,0.00234061]
[1732829669898,0.63372753,95053.0,95052.0,0.00234061]
[1732829670330,0.62872753,95053.0,95052.0,0.00234061]
[1732829670543,0.63572753,95053.0,95052.0,0.00234061]
[1732829671671,0.128227,95032.0,95031.0,0.0004]
[1732829671909,0.128227,95032.0,95031.0,0.04062274]
[1732829671910,0.23107221,95032.0,95031.0,0.04062274]
[1732829673319,0.23107221,95032.0,95031.0,0.04070714]
[1732829675227,0.23107221,95032.0,95031.0,0.04156914]
[1732829675466,0.23107221,95032.0,95031.0,0.03162914]
[1732829675937,0.23107221,95032.0,95031.0,0.03548407]
[1732829676168,0.23107221,95032.0,95031.0,0.03162914]
[1732829677259,0.23107221,95032.0,95031.0,0.03163015]
[1732829679194,0.23107221,95032.0,95031.0,0.0184633]
[1732829679414,0.23107221,95032.0,95031.0,0.03163078]
[1732829680508,0.23107221,95032.0,95031.0,0.03163071]
[1732829681402,0.23024406,95032.0,95031.0,0.03163071]
[1732829682329,0.23024406,95032.0,95031.0,0.02233405]
[1732829684140,0.23024406,95032.0,95031.0,0.02233332]
[1732829685040,0.12584521,95032.0,95031.0,0.02233332]
[1732829685336,0.23340046,95032.0,95031.0,0.02233332]
[1732829685584,0.00917511,95029.0,95028.0,0.28095964]
[1732829685825,0.105233,95027.0,95026.0,0.00994]
[1732829686037,0.20807821,95027.0,95026.0,0.00994]
[1732829686266,0.21040671,95027.0,95026.0,0.00994]
[1732829687954,0.23340671,95027.0,95026.0,0.00994]
[1732829688190,0.23107821,95027.0,95026.0,0.00994]
[1732829688441,0.23107821,95027.0,95026.0,0.01005041]
[1732829690494,0.12584521,95027.0,95026.0,0.01005041]
[1732829692805,0.23107821,95027.0,95026.0,0.01005041]
[1732829695789,0.23107821,95027.0,95026.0,0.0205839]
[1732829697158,0.23107821,95027.0,95026.0,0.01512264]
[1732829697423,0.23107821,95027.0,95026.0,0.29927054]
[1732829697640,0.23107821,95027.0,95026.0,0.30585404]
[1732829698337,0.23654466,95027.0,95026.0,0.30585404]
[1732829698566,0.23654466,95027.0,95026.0,0.3006714]
[1732829698788,0.23654466,95027.0,95026.0,0.30067143]
[1732829699725,0.23654466,95027.0,95026.0,0.30066965]
[1732829699968,0.23654466,95027.0,95026.0,0.30153205]
[1732829701611,0.35974466,95027.0,95026.0,0.29159205]
[1732829701874,0.35948514,95027.0,95026.0,0.00744593]
[1732829702346,0.61422181,95027.0,95026.0,0.00744593]
[1732829702804,0.61422181,95027.0,95026.0,0.0008624]
[1732829705214,0.61522181,95027.0,95026.0,0.0008624]
[1732829705938,0.48748514,95027.0,95026.0,0.0008624]
[1732829706174,0.36428514,95027.0,95026.0,0.00744661]
[1732829706410,0.36345373,95027.0,95026.0,0.00744661]
[1732829707569,0.48885373,95027.0,95026.0,0.00744661]
[1732829707809,0.51185373,95027.0,95026.0,0.00744661]
[1732829709269,0.46345373,95027.0,95026.0,0.00744661]
[1732829710009,0.38645373,95027.0,95026.0,0.00744661]
[1732829711174,0.38645373,95027.0,95026.0,0.24399455]
[1732829711659,0.38645373,95027.0,95026.0,0.24399783]
[1732829711909,0.38645373,95027.0,95026.0,0.00744661]
[1732829712844,0.28122073,95027.0,95026.0,0.00744661]
[1732829713087,0.38645373,95027.0,95026.0,0.0179803]
[1732829713335,0.38817853,95027.0,95026.0,0.0179803]
[1732829713822,0.38817853,95027.0,95026.0,0.01797969]
[1732829714493,0.13294553,95027.0,95026.0,0.02791969]
[1732829715169,0.23817853,95027.0,95026.0,0.02791969]
[1732829717996,0.13294553,95027.0,95026.0,0.02791969]
[1732829718509,0.23817853,95027.0,95026.0,0.02791969]
[1732829721750,0.13294553,95027.0,95026.0,0.02791969]
[1732829721981,0.23817853,95027.0,95026.0,0.02791969]
[1732829722653,0.13294553,95027.0,95026.0,0.02791969]
[1732829723343,0.13294553,95027.0,95026.0,0.31181656]
[1732829723853,0.23817853,95027.0,95026.0,0.31181595]
[1732829724074,0.13294553,95027.0,95026.0,0.32498258]
[1732829724312,0.13294553,95027.0,95026.0,0.31181595]
[1732829727306,0.13294553,95027.0,95026.0,0.29469927]
[1732829727534,0.13294553,95027.0,95026.0,0.3118159]
[1732829727758,0.13294553,95027.0,95026.0,0.30523257]
[1732829727979,0.13294553,95027.0,95026.0,0.02791901]
[1732829730543,0.13294553,95027.0,95026.0,0.04108511]
[1732829733590,0.23817853,95027.0,95026.0,0.04108511]
[1732829734077,0.23817853,95027.0,95026.0,0.31157969]
[1732829734310,0.23817853,95027.0,95026.0,0.31157955]
[1732829740788,0.23817853,95027.0,95026.0,0.02791887]
[1732829741012,0.23817853,95027.0,95026.0,0.02791914]
[1732829745380,0.13294553,95027.0,95026.0,0.02791914]
[1732829746112,0.13294553,95027.0,95026.0,0.31136113]
[1732829746345,0.13294553,95027.0,95026.0,0.02791914]
[1732829747043,0.13294553,95027.0,95026.0,0.02989162]
[1732829747317,0.13294553,95027.0,95026.0,0.02791914]
[1732829747551,0.13394553,95027.0,95026.0,0.02791914]
[1732829747781,0.13394553,95027.0,95026.0,0.01797805]
[1732829748010,0.13394553,95027.0,95026.0,0.02791805]
[1732829748235,0.13294553,95027.0,95026.0,0.02791805]
[1732829748456,0.13194553,95027.0,95026.0,0.02791805]
[1732829748897,0.13294553,95027.0,95026.0,0.02791805]
[1732829749206,0.13194553,95027.0,95026.0,0.02791805]
[1732829749630,0.13294553,95027.0,95026.0,0.02991805]
[1732829749859,0.23817853,95027.0,95026.0,0.02991805]
[1732829750103,0.23817853,95027.0,95026.0,0.02791805]
[1732829750580,0.23817853,95027.0,95026.0,0.02991805]
[1732829750797,0.13294553,95027.0,95026.0,0.02991805]
[1732829751525,0.23817853,95027.0,95026.0,0.02991805]
[1732829751990,0.13294553,95027.0,95026.0,0.02991805]
[1732829752688,0.13294553,95027.0,95026.0,0.44836903]
[1732829752911,0.13294553,95027.0,95026.0,0.03189016]
[1732829753178,0.13294553,95027.0,95026.0,0.02991805]
[1732829754073,0.13294553,95027.0,95026.0,0.03188982]
[1732829754573,0.13294553,95027.0,95026.0,0.02991742]
[1732829755053,0.13294553,95027.0,95026.0,0.15170782]
[1732829755492,0.13294553,95027.0,95026.0,0.04647382]
[1732829756897,0.13294553,95027.0,95026.0,0.15170782]
[1732829757122,0.13294553,95027.0,95026.0,0.04647382]
[1732829757343,0.13294553,95027.0,95026.0,0.15170782]
[1732829757789,0.13294553,95027.0,95026.0,0.14973606]
[1732829758011,0.10994553,95027.0,95026.0,0.19863606]
[1732829758236,0.10994553,95027.0,95026.0,0.19946095]
[1732829758687,0.10994553,95027.0,95026.0,0.24046095]
[1732829758944,0.10994553,95027.0,95026.0,0.24045866]
[1732829759416,0.13194553,95027.0,95026.0,0.23845866]
[1732829759644,0.13294553,95027.0,95026.0,0.24245866]
[1732829759883,0.00819125,95027.0,95026.0,0.24245866]
[1732829760150,0.00819125,95027.0,95026.0,0.25245866]
[1732829761004,0.0017248,95031.0,95030.0,0.21589389]
[1732829761562,0.0017248,95031.0,95030.0,0.38300662]
[1732829761799,0.0017248,95031.0,95030.0,0.41575096]
[1732829762293,0.0107248,95031.0,95030.0,0.38300662]
[1732829762535,0.0017248,95031.0,95030.0,0.38300662]
[1732829762998,0.0107248,95031.0,95030.0,0.38300662]
[1732829764406,0.0197248,95031.0,95030.0,0.38400662]
[1732829764671,0.0197248,95031.0,95030.0,0.34300662]
[1732829768168,0.0197248,95031.0,95030.0,0.29410662]
[1732829772869,0.0137248,95031.0,95030.0,0.29410662]
[1732829773793,0.0888222,95050.0,95030.0,0.29410662]
[1732829773794,0.0098222,95050.0,95049.0,0.11597289]
[1732829774026,0.0098222,95050.0,95049.0,0.12255471]
[1732829774267,0.0755,95065.0,95050.0,0.01076489]
[1732829774517,0.0755,95065.0,95050.0,0.12255371]
[1732829774753,0.0755,95065.0,95050.0,0.55993914]
[1732829775030,0.0755,95065.0,95050.0,0.14308462]
[1732829775707,0.0027244,95051.0,95050.0,0.14508462]
[1732829776663,0.0027244,95051.0,95050.0,0.57585567]
[1732829776909,0.0037244,95051.0,95050.0,0.57232272]
[1732829777146,0.0037244,95051.0,95050.0,0.58285038]
[1732829777651,0.0037244,95051.0,95050.0,0.16644134]
[1732829784013,0.0037244,95051.0,95050.0,0.20744134]
[1732829784281,0.00546929,95052.0,95051.0,0.01994]
[1732829784513,0.00235915,95052.0,95051.0,0.33987833]
[1732829784785,0.001724,95071.0,95070.0,0.115125]
[1732829784993,0.001724,95071.0,95070.0,0.42467369]
[1732829785262,0.001724,95071.0,95070.0,0.14305733]
[1732829785960,0.002724,95071.0,95070.0,0.15205733]
[1732829786184,0.003724,95071.0,95070.0,0.16105733]
[1732829786859,0.003724,95071.0,95070.0,0.16105415]
[1732829788034,0.003724,95071.0,95070.0,0.1753773]
[1732829789630,0.003724,95071.0,95070.0,0.59120146]
[1732829790614,0.003724,95071.0,95070.0,0.1753773]
[1732829791816,0.003724,95071.0,95070.0,0.1653773]
[1732829792068,0.003724,95071.0,95070.0,0.1753773]
[1732829793744,0.003724,95071.0,95070.0,0.15827304]
[1732829794001,0.003724,95071.0,95070.0,0.18321208]
[1732829797711,0.003724,95071.0,95070.0,0.17321208]
[1732829797928,0.003724,95071.0,95070.0,0.18321208]
[1732829800588,0.003724,95071.0,95070.0,0.18321423]
[1732829802428,0.00546876,95073.0,95072.0,0.105183]
[1732829802646,0.00546876,95073.0,95072.0,0.13012419]
[1732829803371,0.10831397,95073.0,95072.0,0.14088908]
[1732829803608,0.20841397,95073.0,95072.0,0.03488119]
[1732829803839,0.20841397,95073.0,95072.0,0.04188289]
[1732829803840,0.25881397,95073.0,95072.0,0.04188289]
[1732829804085,0.25881397,95073.0,95072.0,0.05088289]
[1732829804319,0.25981397,95073.0,95072.0,0.05088289]
[1732829804531,0.25881397,95073.0,95072.0,0.04388289]
[1732829804778,0.25881397,95073.0,95072.0,0.04788289]
[1732829805019,0.25781397,95073.0,95072.0,0.03888289]
[1732829805254,0.25781397,95073.0,95072.0,0.04488289]
[1732829805469,0.25781397,95073.0,95072.0,0.02777653]
[1732829805690,0.25781397,95073.0,95072.0,0.05204321]
[1732829806109,0.25781397,95073.0,95072.0,0.04804321]
[1732829806324,0.25781397,95073.0,95072.0,0.05304321]
[1732829806538,0.25781397,95073.0,95072.0,0.04310321]
[1732829806762,0.25781397,95073.0,95072.0,0.05304321]
[1732829806990,0.25781397,95073.0,95072.0,0.05204321]
[1732829807278,0.25781397,95073.0,95072.0,0.04610321]
[1732829807497,0.25781397,95073.0,95072.0,0.05604321]
[1732829807914,0.25953657,95073.0,95072.0,0.05604321]
[1732829808118,0.36471857,95073.0,95072.0,0.05604321]
[1732829808333,0.25953657,95073.0,95072.0,0.05604321]
[1732829809316,0.36471857,95073.0,95072.0,0.05604321]
[1732829809550,0.25953657,95073.0,95072.0,0.05604321]
[1732829810171,0.25953657,95073.0,95072.0,0.03888378]
[1732829810289,0.36471857,95073.0,95072.0,0.03488378]
[1732829810512,0.25953657,95073.0,95072.0,0.03988378]
[1732829810726,0.25953657,95073.0,95072.0,0.03989615]
[1732829810952,0.25953657,95073.0,95072.0,0.03689615]
[1732829812287,0.25953657,95073.0,95072.0,0.03989615]
[1732829812927,0.25953657,95073.0,95072.0,0.05305553]
[1732829817669,0.25953657,95073.0,95072.0,0.05305543]
[1732829817918,0.25953657,95073.0,95072.0,0.15823843]
[1732829818145,0.13303657,95073.0,95072.0,0.15823843]
[1732829818397,0.13303657,95073.0,95072.0,0.5922516]
[1732829818398,0.00719136,95073.0,95072.0,0.5922516]
[1732829818631,0.00719136,95073.0,95072.0,0.17362633]
[1732829819356,0.00719136,95073.0,95072.0,0.17062444]
[1732829819556,0.00719136,95073.0,95072.0,0.17662444]
[1732829819828,0.00719136,95073.0,95072.0,0.17462444]
[1732829820103,0.00819136,95073.0,95072.0,0.17762444]
[1732829820341,0.00819136,95073.0,95072.0,0.18462444]
[1732829826302,0.00819136,95073.0,95072.0,0.19462444]
[1732829826801,0.00819136,95073.0,95072.0,0.19461879]
[1732829830107,0.00819136,95073.0,95072.0,0.19461867]
[1732829830392,0.0027226,95073.0,95072.0,0.38561867]
[1732829830617,0.0099212,95092.0,95091.0,0.11592689]
[1732829830839,0.10831156,95092.0,95091.0,0.15403466]
[1732829832218,0.10831156,95092.0,95091.0,0.1559706]
[1732829832884,0.10831156,95092.0,95091.0,0.1569706]
[1732829833097,0.10831156,95092.0,95091.0,0.15503466]
[1732829833577,0.10831156,95092.0,95091.0,0.12477391]
[1732829833802,0.10831156,95092.0,95091.0,0.15503043]
[1732829834256,0.00546635,95092.0,95091.0,0.15603043]
[1732829834713,0.00546635,95092.0,95091.0,0.16603043]
[1732829836370,0.00546635,95092.0,95091.0,0.15603043]
[1732829836593,0.00546635,95092.0,95091.0,0.1803119]
[1732829838477,0.00608191,95092.0,95091.0,0.1803119]
[1732829843567,0.00694301,95092.0,95091.0,0.1803119]
[1732829847355,0.00694301,95092.0,95091.0,0.18031042]
[1732829849926,0.00694301,95092.0,95091.0,0.17031042]
[1732829850385,0.00694301,95092.0,95091.0,0.18031042]
[1732829854015,0.00694301,95092.0,95091.0,0.18031102]
[1732829854712,0.00694301,95092.0,95091.0,0.59601767]
[1732829855445,0.00694301,95092.0,95091.0,0.18031102]
[1732829857260,0.00694301,95092.0,95091.0,0.172464]
[1732829857522,0.00694301,95092.0,95091.0,0.19284759]
[1732829857763,0.0462,95097.0,95096.0,0.115096]
[1732829857985,0.14904521,95097.0,95096.0,0.16573523]
[1732829858873,0.14904521,95097.0,95096.0,0.17273523]
[1732829859362,0.14904521,95097.0,95096.0,0.18173523]
[1732829859811,0.14904521,95097.0,95096.0,0.59742622]
[1732829860752,0.14904521,95097.0,95096.0,0.18175418]
[1732829866866,0.14990631,95097.0,95096.0,0.18175418]
[1732829867583,0.14990631,95097.0,95096.0,0.131096]
[1732829867808,0.14990631,95097.0,95096.0,0.1817576]
[1732829868032,0.11702091,95097.0,95096.0,0.1817576]
[1732829868246,0.10370631,95097.0,95096.0,0.1817576]
[1732829868473,0.00104567,95097.0,95096.0,0.18258249]
[1732829868796,0.0017234,95101.0,95100.0,0.115092]
[1732829868971,0.0017234,95101.0,95100.0,0.12591689]
[1732829869249,0.0017234,95101.0,95100.0,0.22417849]
[1732829869724,0.0017234,95101.0,95100.0,0.54089544]
[1732829870200,0.0017234,95101.0,95100.0,0.22417849]
[1732829870432,0.0017234,95101.0,95100.0,0.54125189]
[1732829870648,0.0017234,95101.0,95100.0,0.22417849]
[1732829871095,0.0017234,95101.0,95100.0,0.23017849]
[1732829871610,0.0017234,95101.0,95100.0,0.415831]
[1732829871853,0.0017234,95101.0,95100.0,0.4685018]
[1732829872065,0.0017234,95101.0,95100.0,0.4755018]
[1732829872295,0.0017234,95101.0,95100.0,0.4845018]
[1732829872742,0.0017234,95101.0,95100.0,0.4775018]
[1732829872971,0.0017234,95101.0,95100.0,0.4685018]
[1732829873709,0.0017234,95101.0,95100.0,0.4275018]
[1732829874198,0.0017234,95101.0,95100.0,0.3809018]
[1732829874481,0.0017234,95101.0,95100.0,0.3819018]
[1732829875197,0.0017234,95101.0,95100.0,0.34924929]
[1732829877832,0.0017232,95118.0,95117.0,0.00994]
[1732829878074,0.0017232,95118.0,95117.0,0.16566269]
[1732829881758,0.0017232,95118.0,95117.0,0.17953964]
[1732829885276,0.10456841,95118.0,95117.0,0.07523153]
[1732829885575,0.23270041,95118.0,95117.0,0.31975299]
[1732829885827,0.23270041,95118.0,95117.0,0.00657568]
[1732829886322,0.128143,95108.0,95107.0,0.23477038]
[1732829886537,0.128143,95108.0,95107.0,0.02704251]
[1732829886538,0.23098821,95108.0,95107.0,0.02704251]
[1732829886768,0.23098821,95108.0,95107.0,0.00994]
[1732829886983,0.23098821,95108.0,95107.0,0.02704252]
[1732829887646,0.23098821,95108.0,95107.0,0.01651789]
[1732829887896,0.23098821,95108.0,95107.0,0.02704257]
[1732829888109,0.35448821,95108.0,95107.0,0.02704257]
[1732829888329,0.35448821,95108.0,95107.0,0.02551789]
[1732829888547,0.35448821,95108.0,95107.0,0.27081266]
[1732829888983,0.35448821,95108.0,95107.0,0.27089235]
[1732829889436,0.35448821,95108.0,95107.0,0.02551789]
[1732829889685,0.35448821,95108.0,95107.0,0.03104211]
[1732829889908,0.35448821,95108.0,95107.0,0.26789218]
[1732829890142,0.35448821,95108.0,95107.0,0.03304211]
[1732829890352,0.35448821,95108.0,95107.0,0.02251789]
[1732829890623,0.35448821,95108.0,95107.0,0.03304232]
[1732829891483,0.35448821,95108.0,95107.0,0.01851789]
[1732829891911,0.35448821,95108.0,95107.0,0.01951789]
[1732829893494,0.35448821,95108.0,95107.0,0.01294]
[1732829893690,0.35448821,95108.0,95107.0,0.01951777]
[1732829894772,0.35448821,95108.0,95107.0,0.25432456]
[1732829894989,0.35448821,95108.0,95107.0,0.01951777]
[1732829897696,0.35448821,95108.0,95107.0,0.00957777]
[1732829898177,0.35448821,95108.0,95107.0,0.01751777]
[1732829898418,0.35748821,95108.0,95107.0,0.00757777]
[1732829898631,0.35748821,95108.0,95107.0,0.00657777]
[1732829899095,0.35848821,95108.0,95107.0,0.00657777]
[1732829899336,0.35448821,95108.0,95107.0,0.00657777]
[1732829899577,0.35995247,95108.0,95107.0,0.00657777]
[1732829899813,0.36295247,95108.0,95107.0,0.00657777]
[1732829900283,0.228946,95105.0,95104.0,0.23480679]
[1732829900498,0.35479121,95105.0,95104.0,0.23480679]
[1732829900742,0.35479121,95105.0,95104.0,0.24138457]
[1732829901191,0.35479121,95105.0,95104.0,0.00657778]
[1732829902557,0.35579121,95105.0,95104.0,0.00657778]
[1732829902760,0.36678068,95105.0,95104.0,0.00657778]
[1732829903482,0.26163468,95105.0,95104.0,0.01651778]
[1732829904191,0.19053468,95105.0,95104.0,0.40425882]
[1732829904427,0.18953468,95105.0,95104.0,0.146168]
[1732829904874,0.19053468,95105.0,95104.0,0.13301393]
[1732829905148,0.18953468,95105.0,95104.0,0.148168]
[1732829905348,0.18953468,95105.0,95104.0,0.17122538]
[1732829905564,0.18953468,95105.0,95104.0,0.15807131]
[1732829905565,0.01098947,95105.0,95104.0,0.15807131]
[1732829905828,0.01098947,95105.0,95104.0,0.16922538]
[1732829906070,0.01098947,95105.0,95104.0,0.16107131]
[1732829906293,0.01098947,95105.0,95104.0,0.17422538]
[1732829906766,0.01098947,95105.0,95104.0,0.16107131]
[1732829907010,0.01098947,95105.0,95104.0,0.17422538]
[1732829907239,0.01098947,95105.0,95104.0,0.17422313]
[1732829907969,0.01098947,95105.0,95104.0,0.27342313]
[1732829908889,0.01098947,95105.0,95104.0,0.28987853]
[1732829909128,0.01098947,95105.0,95104.0,0.43087853]
[1732829909368,0.01098947,95105.0,95104.0,0.43187853]
[1732829909636,0.01598947,95105.0,95104.0,0.43287853]
[1732829909857,0.01598947,95105.0,95104.0,0.43087853]
[1732829910083,0.02098947,95105.0,95104.0,0.44187853]
[1732829910315,0.00074362,95105.0,95104.0,0.44187853]
[1732829910759,0.00074362,95105.0,95104.0,0.42872511]
[1732829911254,0.00074362,95105.0,95104.0,0.42972511]
[1732829912143,6.2e-07,95105.0,95104.0,0.42972511]
[1732829912381,4.2e-07,95108.0,95107.0,0.37510889]
[1732829912604,4.2e-07,95108.0,95107.0,0.39220833]
[1732829913802,4.2e-07,95108.0,95107.0,0.39320833]
[1732829914244,0.0017232,95118.0,95117.0,0.32409789]
[1732829914472,0.0017232,95118.0,95117.0,0.34119733]
[1732829915862,0.0017232,95118.0,95117.0,0.38219733]
[1732829916107,0.0017232,95118.0,95117.0,0.38319733]
[1732829917969,0.0017232,95118.0,95117.0,0.38419733]
[1732829919119,0.0017232,95118.0,95117.0,0.3981694]
[1732829920785,0.0017232,95118.0,95117.0,0.3981627]
[1732829921515,0.0098497,95138.0,95136.0,0.12587689]
[1732829921725,0.0098497,95138.0,95136.0,0.29296963]
[1732829921954,0.082,95153.0,95136.0,0.29296963]
[1732829922385,0.082,95153.0,95136.0,0.37222346]
[1732829922850,0.0794486,95153.0,95152.0,0.11585989]
[1732829923074,0.0794486,95153.0,95152.0,0.13295263]
[1732829923719,0.0794486,95153.0,95152.0,0.42690175]
[1732829924621,0.0794486,95153.0,95152.0,0.42790175]
[1732829925701,0.0794486,95153.0,95152.0,0.42890175]
[1732829927569,0.0794486,95153.0,95152.0,0.42889839]
[1732829927788,0.0794486,95153.0,95152.0,0.14883542]
[1732829928011,0.0794486,95153.0,95152.0,0.13494927]
[1732829928229,0.07963365,95153.0,95152.0,0.13494927]
[1732829932883,0.12903365,95153.0,95152.0,0.13494927]
[1732829934730,0.12903365,95153.0,95152.0,0.13495053]
[1732829934933,0.12903365,95153.0,95152.0,0.12501053]
[1732829935147,0.12903365,95153.0,95152.0,0.13495053]
[1732829936249,0.12903365,95153.0,95152.0,0.4144076]
[1732829937286,0.12903365,95153.0,95152.0,0.13495053]
[1732829937960,0.12303365,95153.0,95152.0,0.1349505]
[1732829939310,0.12389485,95153.0,95152.0,0.1349505]
[1732829940001,0.12389485,95153.0,95152.0,0.1244332]
[1732829940221,0.12389485,95153.0,95152.0,0.11785989]
[1732829940457,0.12389485,95153.0,95152.0,0.13495048]
[1732829940690,0.12389485,95153.0,95152.0,0.11785989]
[1732829941119,0.12389485,95153.0,95152.0,0.13495053]
[1732829941689,0.12389485,95153.0,95152.0,0.11785989]
[1732829942161,0.12389485,95153.0,95152.0,0.13495048]
[1732829943281,0.12389485,95153.0,95152.0,0.54758631]
[1732829943778,0.00104625,95153.0,95152.0,0.54758631]
[1732829944257,0.07154625,95161.0,95152.0,0.02985548]
[1732829944492,0.17439146,95161.0,95160.0,0.115026]
[1732829944949,0.17439146,95161.0,95160.0,0.13211619]
[1732829945779,0.17439146,95161.0,95160.0,0.14111619]
[1732829946220,0.17539146,95161.0,95160.0,0.14111619]
[1732829946672,0.17439146,95161.0,95160.0,0.14111619]
[1732829947120,0.17439146,95161.0,95160.0,0.14911619]
[1732829947333,0.17439146,95161.0,95160.0,0.56228541]
[1732829948275,0.17439146,95161.0,95160.0,0.14911619]
[1732829950746,0.24539146,95161.0,95160.0,0.04403019]
[1732829950979,0.24539146,95161.0,95160.0,0.04485508]
[1732829951188,0.24539146,95161.0,95160.0,0.45837695]
[1732829952153,0.24539146,95161.0,95160.0,0.14911713]
[1732829952631,0.24625256,95161.0,95160.0,0.14911713]
[1732829953315,0.24625256,95161.0,95160.0,0.13211713]
[1732829953527,0.24625256,95161.0,95160.0,0.14711713]
[1732829953740,0.24625256,95161.0,95160.0,0.15126394]
[1732829954213,0.24625256,95161.0,95160.0,0.15426394]
[1732829954439,0.24625256,95161.0,95160.0,0.15508883]
[1732829954676,0.24625256,95161.0,95160.0,0.14794202]
[1732829955344,0.24625256,95161.0,95160.0,0.14794155]
[1732829955562,0.24625256,95161.0,95160.0,0.13894155]
[1732829955806,0.24625256,95161.0,95160.0,0.14094155]
[1732829956008,0.24625256,95161.0,95160.0,0.13294155]
[1732829956219,0.24625256,95161.0,95160.0,0.13894155]
[1732829956449,0.24625256,95161.0,95160.0,0.14694155]
[1732829956645,0.25723661,95161.0,95160.0,0.14694155]
[1732829957286,0.18623661,95161.0,95160.0,0.14694155]
[1732829958585,0.18623661,95161.0,95160.0,0.16008794]
[1732829958812,0.18623661,95161.0,95160.0,0.16008758]
[1732829959749,0.18623661,95161.0,95160.0,0.14694119]
[1732829960177,0.18623661,95161.0,95160.0,0.16062617]
[1732829961791,0.18623661,95161.0,95160.0,0.17377247]
[1732829962700,0.01184515,95161.0,95160.0,0.17377247]
[1732829963131,0.0008611,95161.0,95160.0,0.17377247]
[1732829965723,0.0008611,95161.0,95160.0,0.17549447]
[1732829968588,0.0008611,95161.0,95160.0,0.16749447]
[1732829968804,0.0008611,95161.0,95160.0,0.13125787]
[1732829969014,0.0018611,95161.0,95160.0,0.49507152]
[1732829969225,0.0018611,95161.0,95160.0,0.17849054]
[1732829982484,0.0018611,95161.0,95160.0,0.17849069]
[1732829982694,0.0012618,95169.0,95168.0,0.105077]
[1732829982900,0.12710701,95169.0,95168.0,0.14524982]
[1732829984167,0.12710701,95169.0,95168.0,0.15324982]
[1732829984391,0.12710701,95169.0,95168.0,0.15824982]
[1732829986375,0.10410701,95169.0,95168.0,0.15824982]